fUSD/lending_fUSD_20250428
["ID","MTS","AMOUNT","RATE_DAILY","PERIOD"]
[359252184,1745871046989,-470.0,0.00038356,6]
[359252185,1745871046999,-470.0,0.00038356,6]
[359252186,1745871047008,-470.0,0.00038356,6]
[359252187,1745871047018,-470.0,0.00038356,6]
[359252188,1745871047027,-487.84,0.00038356,2]
[359252189,1745871047037,-470.0,0.00038356,6]
[359252190,1745871047046,-479.49,0.00038356,6]
[359252191,1745871047111,-470.0,0.00038356,6]
[359252192,1745871047120,-4084.28,0.00038356,6]
[359252193,1745871047130,-631.83,0.00038356,6]
[359252194,1745871047140,-470.0,0.00038356,6]
[359252195,1745871047151,-470.0,0.00038356,6]
[359252196,1745871047163,-470.0,0.00038356,6]
[359252197,1745871047173,-470.0,0.00038356,6]
[359252198,1745871047183,-470.0,0.00038356,6]
[359252199,1745871047193,-591.3,0.00038356,6]
[359252200,1745871047204,-866.47,0.00038356,6]
[359252201,1745871047213,-470.0,0.00038356,6]
[359252202,1745871047223,-470.0,0.00038356,6]
[359252203,1745871047233,-470.0,0.00038356,6]
[359252204,1745871047243,-470.0,0.00038356,6]
[359252205,1745871047252,-1437.91,0.00038356,6]
[359252206,1745871047262,-470.0,0.00038356,6]
[359252207,1745871047272,-470.0,0.00038356,6]
[359252208,1745871047282,-470.0,0.00038356,6]
[359252209,1745871047291,-470.0,0.00038356,6]
[359252210,1745871047301,-470.0,0.00038356,6]
[359252211,1745871047311,-470.0,0.00038356,6]
[359252212,1745871047321,-470.0,0.00038356,6]
[359252213,1745871047331,-831.96,0.00038356,6]
[359252214,1745871047342,-470.0,0.00038356,6]
[359252215,1745871047353,-16513.68,0.00038356,6]
[359252216,1745871047364,-470.0,0.00038356,6]
[359252217,1745871047375,-748.7,0.00038356,6]
[359252218,1745871047385,-598.81771363,0.00038356,6]
[359252219,1745871047396,-470.0,0.00038356,6]
[359252220,1745871047406,-470.0,0.00038356,6]
[359252221,1745871047416,-493.46,0.00038356,6]
[359252222,1745871047426,-470.0,0.00038356,6]
[359252223,1745871047436,-699.32,0.00038356,6]
[359252224,1745871047446,-470.0,0.00038356,6]
[359252225,1745871047456,-537.15989316,0.00038356,6]
[359252226,1745871047466,-470.0,0.00038356,6]
[359252227,1745871047476,-514.17,0.00038356,6]
[359252228,1745871047486,-470.0,0.00038356,6]
[359252229,1745871047495,-470.0,0.00038356,6]
[359252230,1745871047504,-470.0,0.00038356,6]
[359252231,1745871047514,-267.86219444,0.00038356,6]
[359252232,1745871047523,-564.18,0.00038356,6]
[359252233,1745871047533,-470.0,0.00038356,6]
[359252234,1745871047542,-470.0,0.00038356,6]
[359252235,1745871047551,-705.0,0.00038356,6]
[359252236,1745871047560,-470.0,0.00038356,6]
[359252237,1745871047571,-506.58261526,0.00038356,6]
[359252238,1745871047583,-470.0,0.00038356,6]
[359252239,1745871047593,-470.0,0.00038356,6]
[359252240,1745871047602,-602.81369381,0.00038356,6]
[359252241,1745871047612,-470.0,0.00038356,6]
[359252242,1745871047621,-470.0,0.00038356,6]
[359252243,1745871047630,-470.0,0.00038356,6]
[359252244,1745871047639,-1000.0,0.00038356,6]
[359252245,1745871047651,-470.0,0.00038356,6]
[359252246,1745871047660,-470.0,0.00038356,6]
[359252247,1745871047670,-507.48616883,0.00038356,6]
[359252248,1745871047679,-530.0,0.00038356,6]
[359252249,1745871047688,-508.15,0.00038356,6]
[359252250,1745871047697,-470.0,0.00038356,6]
[359252251,1745871047706,-470.0,0.00038356,6]
[359252252,1745871047716,-470.0,0.00038356,6]
[359252253,1745871047725,-470.0,0.00038356,6]
[359252254,1745871047735,-470.0,0.00038356,6]
[359252255,1745871047744,-674.93,0.00038356,6]
[359252256,1745871047753,-470.0,0.00038356,6]
[359252257,1745871047762,-540.54,0.00038356,6]
[359252258,1745871047772,-470.0,0.00038356,6]
[359252259,1745871047781,-488.09,0.00038356,6]
[359252260,1745871047790,-817.35,0.00038356,6]
[359252261,1745871047799,-470.0,0.00038356,6]
[359252262,1745871047808,-501.79125565,0.00038356,6]
[359252263,1745871047817,-470.0,0.00038356,6]
[359252264,1745871047827,-504.33462083,0.00038356,6]
[359252265,1745871047836,-504.64014041,0.00038356,6]
[359252266,1745871047845,-470.0,0.00038356,6]
[359252267,1745871047854,-508.54046209,0.00038356,6]
[359252268,1745871047863,-999.56,0.00038356,6]
[359252269,1745871047872,-470.0,0.00038356,6]
[359252270,1745871047881,-470.0,0.00038356,6]
[359252271,1745871047891,-470.0,0.00038356,6]
[359252272,1745871047900,-55254.58,0.00038356,6]
[359252273,1745871047909,-470.0,0.00038356,6]
[359252274,1745871047918,-400.0,0.00038356,6]
[359252275,1745871047928,-525.11,0.00038356,6]
[359252276,1745871047938,-967.06,0.00038356,6]
[359252277,1745871047947,-515.01612679,0.00038356,6]
[359252278,1745871047957,-470.0,0.00038356,6]
[359252279,1745871047967,-470.0,0.00038356,6]
[359252280,1745871047976,-470.0,0.00038356,6]
[359252281,1745871047986,-470.0,0.00038356,6]
[359252282,1745871047995,-470.0,0.00038356,6]
[359252283,1745871048005,-470.0,0.00038356,6]
[359252284,1745871048014,-503.09110774,0.00038356,6]
[359252285,1745871048026,-525.80626534,0.00038356,6]
[359252286,1745871048035,-511.43214584,0.00038356,6]
[359252287,1745871048045,-470.0,0.00038356,6]
[359252288,1745871048054,-470.0,0.00038356,6]
[359252289,1745871048062,-626.05,0.00038356,6]
[359252290,1745871048071,-470.0,0.00038356,6]
[359252291,1745871048080,-537.64,0.00038356,6]
[359252292,1745871048091,-470.0,0.00038356,6]
[359252293,1745871048100,-558.65,0.00038356,6]
[359252294,1745871048109,-505.0,0.00038356,6]
[359252295,1745871048119,-470.0,0.00038356,6]
[359252296,1745871048129,-470.0,0.00038356,6]
[359252297,1745871048138,-517.96016361,0.00038356,6]
[359252298,1745871048147,-571.85,0.00038356,6]
[359252299,1745871048156,-470.0,0.00038356,6]
[359252300,1745871048166,-470.0,0.00038356,6]
[359252301,1745871048175,-2038.52,0.00038356,6]
[359252302,1745871048185,-470.0,0.00038356,6]
[359252303,1745871048195,-470.0,0.00038356,6]
[359252304,1745871048205,-175.55032528,0.00038356,6]
[359252305,1745871048215,-470.0,0.00038356,6]
[359252306,1745871048225,-470.0,0.00038356,6]
[359252307,1745871048234,-470.0,0.00038356,6]
[359252308,1745871048244,-470.0,0.00038356,6]
[359252309,1745871048254,-470.0,0.00038356,6]
[359252310,1745871048263,-470.0,0.00038356,6]
[359252311,1745871048272,-470.0,0.00038356,6]
[359252312,1745871048282,-516.9496733,0.00038356,6]
[359252313,1745871048292,-914.3,0.00038356,6]
[359252314,1745871048302,-470.0,0.00038356,6]
[359252315,1745871048312,-1870.47,0.00038356,6]
[359252316,1745871048322,-531.43576368,0.00038356,6]
[359252317,1745871048331,-470.0,0.00038356,6]
[359252318,1745871048341,-470.0,0.00038356,6]
[359252319,1745871048351,-470.0,0.00038356,6]
[359252320,1745871048360,-1481.17,0.00038356,6]
[359252321,1745871048370,-470.0,0.00038356,6]
[359252322,1745871048380,-470.0,0.00038356,6]
[359252323,1745871048390,-470.0,0.00038356,6]
[359252324,1745871048399,-470.0,0.00038356,6]
[359252325,1745871048409,-470.0,0.00038356,6]
[359252326,1745871048419,-470.0,0.00038356,6]
[359252327,1745871048429,-470.0,0.00038356,6]
[359252328,1745871048439,-470.0,0.00038356,6]
[359252329,1745871048449,-509.33892822,0.00038356,7]
[359252330,1745871048460,-470.0,0.00038356,6]
[359252331,1745871048469,-470.0,0.00038356,6]
[359252332,1745871048480,-470.0,0.00038356,6]
[359252333,1745871048490,-547.75312208,0.00038356,6]
[359252334,1745871048499,-470.0,0.00038356,6]
[359252335,1745871048509,-470.0,0.00038356,6]
[359252336,1745871048519,-470.0,0.00038356,6]
[359252337,1745871048529,-470.0,0.00038356,6]
[359252338,1745871048539,-470.0,0.00038356,6]
[359252339,1745871048549,-470.0,0.00038356,6]
[359252340,1745871048560,-470.0,0.00038356,6]
[359252341,1745871048573,-806.04,0.00038356,6]
[359252342,1745871048583,-470.0,0.00038356,6]
[359252343,1745871048594,-155.54772845,0.00038356,6]
[359252344,1745871048604,-470.0,0.00038356,6]
[359252345,1745871048615,-470.0,0.00038356,6]
[359252346,1745871048624,-470.0,0.00038356,6]
[359252347,1745871048634,-470.0,0.00038356,6]
[359252348,1745871048645,-591.16833326,0.00038356,6]
[359252349,1745871048655,-470.0,0.00038356,6]
[359252350,1745871048664,-470.0,0.00038356,6]
[359252351,1745871048675,-470.0,0.00038356,6]
[359252352,1745871048685,-515.8663349,0.00038356,6]
[359252353,1745871048695,-479.83,0.00038356,6]
[359252354,1745871048705,-470.0,0.00038356,6]
[359252355,1745871048716,-470.0,0.00038356,6]
[359252356,1745871048725,-470.0,0.00038356,6]
[359252357,1745871048735,-540.13357943,0.00038356,6]
[359252358,1745871048745,-470.0,0.00038356,6]
[359252359,1745871048756,-470.0,0.00038356,6]
[359252360,1745871048766,-537.25451981,0.00038356,6]
[359252361,1745871048775,-470.0,0.00038356,6]
[359252362,1745871048785,-470.0,0.00038356,6]
[359252363,1745871048795,-815.51,0.00038356,6]
[359252364,1745871048805,-470.0,0.00038356,6]
[359252365,1745871048815,-470.0,0.00038356,6]
[359252366,1745871048824,-470.0,0.00038356,6]
[359252367,1745871048834,-476.55,0.00038356,6]
[359252368,1745871048844,-470.0,0.00038356,6]
[359252369,1745871048854,-470.0,0.00038356,6]
[359252370,1745871048865,-470.0,0.00038356,6]
[359252371,1745871048875,-581.16,0.00038356,6]
[359252372,1745871048885,-470.0,0.00038356,6]
[359252373,1745871048895,-470.0,0.00038356,6]
[359252374,1745871048904,-400.0,0.00038356,6]
[359252375,1745871048914,-470.0,0.00038356,5]
[359252376,1745871048924,-470.0,0.00038356,6]
[359252377,1745871048934,-470.0,0.00038356,6]
[359252378,1745871048943,-3347.11,0.00038356,6]
[359252379,1745871048952,-470.0,0.00038356,6]
[359252380,1745871048960,-705.61,0.00038356,6]
[359252381,1745871048969,-470.0,0.00038356,6]
[359252382,1745871048978,-470.0,0.00038356,6]
[359252383,1745871048987,-490.54,0.00038356,6]
[359252384,1745871048996,-470.0,0.00038356,6]
[359252385,1745871049005,-543.92,0.00038356,6]
[359252386,1745871049015,-470.0,0.00038356,6]
[359252387,1745871049024,-470.0,0.00038356,6]
[359252388,1745871049033,-534.84,0.00038356,6]
[359252389,1745871049041,-604.39,0.00038356,6]
[359252390,1745871049050,-470.0,0.00038356,6]
[359252391,1745871049060,-999.4,0.00038356,6]
[359252392,1745871049068,-470.0,0.00038356,6]
[359252393,1745871049077,-470.0,0.00038356,6]
[359252394,1745871049087,-470.0,0.00038356,6]
[359252395,1745871049096,-470.0,0.00038356,6]
[359252396,1745871049105,-892.81100963,0.00038356,6]
[359252397,1745871049114,-470.0,0.00038356,6]
[359252398,1745871049123,-792.79,0.00038356,6]
[359252399,1745871049130,-470.0,0.00038356,6]
[359252400,1745871049138,-470.0,0.00038356,6]
[359252401,1745871049146,-470.0,0.00038356,6]
[359252402,1745871049153,-470.0,0.00038356,6]
[359252403,1745871049160,-470.0,0.00038356,6]
[359252404,1745871049167,-470.0,0.00038356,6]
[359252405,1745871049175,-470.0,0.00038356,6]
[359252406,1745871049183,-470.0,0.00038356,6]
[359252407,1745871049193,-470.0,0.00038356,6]
[359252408,1745871049203,-470.0,0.00038356,6]
[359252409,1745871049213,-794.07,0.00038356,6]
[359252410,1745871049222,-470.0,0.00038356,6]
[359252411,1745871049233,-460.23309024,0.00038356,6]
[359252412,1745871049243,-470.0,0.00038356,6]
[359252413,1745871049253,-470.0,0.00038356,6]
[359252414,1745871049263,-470.0,0.00038356,6]
[359252415,1745871049273,-598.51,0.00038356,6]
[359252416,1745871049283,-470.0,0.00038356,6]
[359252417,1745871049293,-470.0,0.00038356,6]
[359252418,1745871049303,-470.0,0.00038356,6]
[359252419,1745871049313,-470.0,0.00038356,6]
[359252420,1745871049323,-980.68,0.00038356,6]
[359252421,1745871049332,-196.90439369,0.00038356,6]
[359252422,1745871049343,-505.10039517,0.00038356,6]
[359252423,1745871049353,-502.49429792,0.00038356,6]
[359252424,1745871049363,-470.0,0.00038356,6]
[359252425,1745871049373,-597.96092439,0.00038356,6]
[359252426,1745871049383,-160.0,0.00038356,2]
[359252427,1745871049394,-610.42,0.00038356,6]
[359252428,1745871049404,-470.0,0.00038356,6]
[359252429,1745871049413,-470.0,0.00038356,6]
[359252430,1745871049423,-855.1,0.00038356,6]
[359252431,1745871049433,-470.0,0.00038356,3]
[359252432,1745871049443,-470.0,0.00038356,6]
[359252433,1745871049453,-766.12,0.00038356,6]
[359252434,1745871049463,-705.37,0.00038356,6]
[359252435,1745871049474,-470.0,0.00038356,6]
[359252436,1745871049484,-1237.5,0.00038356,6]
[359252437,1745871049495,-470.0,0.00038356,6]
[359252438,1745871049505,-470.0,0.00038356,6]
[359252439,1745871049515,-470.0,0.00038356,6]
[359252440,1745871049525,-470.0,0.00038356,6]
[359252441,1745871049534,-470.0,0.00038356,6]
[359252442,1745871049544,-470.0,0.00038356,6]
[359252443,1745871049554,-470.0,0.00038356,6]
[359252444,1745871049564,-1958.29,0.00038356,6]
[359252445,1745871049575,-603.26,0.00038356,6]
[359252446,1745871049587,-516.51143669,0.00038356,6]
[359252447,1745871049597,-470.0,0.00038356,6]
[359252448,1745871049607,-470.0,0.00038356,6]
[359252449,1745871049618,-470.0,0.00038356,6]
[359252450,1745871049627,-1227.07,0.00038356,6]
[359252451,1745871049637,-683.22,0.00038356,6]
[359252452,1745871049647,-231.12927936,0.00038356,6]
[359252453,1745871049660,-470.0,0.00038356,6]
[359252454,1745871049671,-470.0,0.00038356,6]
[359252455,1745871049681,-470.0,0.00038356,6]
[359252456,1745871049691,-512.32072083,0.00038356,6]
[359252457,1745871049701,-599.52,0.00038356,6]
[359252458,1745871049711,-1747.63,0.00038356,6]
[359252459,1745871049721,-470.0,0.00038356,6]
[359252460,1745871049731,-5247.81,0.00038356,6]
[359252461,1745871049742,-470.0,0.00038356,6]
[359252462,1745871049752,-470.0,0.00038356,6]
[359252463,1745871049763,-470.0,0.00038356,6]
[359252464,1745871049773,-470.0,0.00038356,6]
[359252465,1745871049783,-470.0,0.00038356,6]
[359252466,1745871049793,-562.61,0.00038356,6]
[359252467,1745871049803,-470.0,0.00038356,6]
[359252468,1745871049814,-470.0,0.00038356,6]
[359252469,1745871049824,-470.0,0.00038356,6]
[359252470,1745871049834,-470.0,0.00038356,2]
[359252471,1745871049843,-470.0,0.00038356,6]
[359252472,1745871049853,-470.0,0.00038356,6]
[359252473,1745871049862,-470.0,0.00038356,6]
[359252474,1745871049872,-958.56,0.00038356,6]
[359252475,1745871049883,-470.0,0.00038356,6]
[359252476,1745871049893,-546.69,0.00038356,6]
[359252477,1745871049903,-470.0,0.00038356,6]
[359252478,1745871049914,-470.0,0.00038356,6]
[359252479,1745871049924,-470.0,0.00038356,6]
[359252480,1745871049934,-470.0,0.00038356,6]
[359252481,1745871049944,-470.0,0.00038356,6]
[359252482,1745871049955,-470.0,0.00038356,6]
[359252483,1745871049966,-961.9,0.00038356,6]
[359252484,1745871049977,-470.0,0.00038356,6]
[359252485,1745871049986,-1703.16,0.00038356,6]
[359252486,1745871049996,-896.89,0.00038356,6]
[359252487,1745871050006,-1026.76,0.00038356,6]
[359252488,1745871050016,-724.68,0.00038356,6]
[359252489,1745871050026,-1236.69,0.00038356,6]
[359252490,1745871050035,-470.0,0.00038356,6]
[359252491,1745871050046,-470.0,0.00038356,6]
[359252492,1745871050056,-470.0,0.00038356,6]
[359252493,1745871050066,-193.9169444,0.00038356,6]
[359252494,1745871050077,-470.0,0.00038356,6]
[359252495,1745871050088,-561.62,0.00038356,6]
[359252496,1745871050099,-470.0,0.00038356,6]
[359252497,1745871050109,-470.0,0.00038356,6]
[359252498,1745871050120,-470.0,0.00038356,6]
[359252499,1745871050130,-470.0,0.00038356,6]
[359252500,1745871050140,-470.0,0.00038356,6]
[359252501,1745871050151,-1577.96,0.00038356,6]
[359252502,1745871050162,-470.0,0.00038356,6]
[359252503,1745871050172,-470.0,0.00038356,6]
[359252504,1745871050183,-1222.69,0.00038356,6]
[359252505,1745871050192,-470.0,0.00038356,6]
[359252506,1745871050202,-470.0,0.00038356,6]
[359252507,1745871050212,-470.0,0.00038356,6]
[359252508,1745871050222,-470.0,0.00038356,6]
[359252509,1745871050232,-809.83,0.00038356,6]
[359252510,1745871050242,-470.0,0.00038356,6]
[359252511,1745871050253,-755.96,0.00038356,6]
[359252512,1745871050263,-616.01,0.00038356,6]
[359252513,1745871050274,-470.0,0.00038356,6]
[359252514,1745871050283,-523.9,0.00038356,6]
[359252515,1745871050294,-1141.53,0.00038356,6]
[359252516,1745871050305,-470.0,0.00038356,6]
[359252517,1745871050315,-470.0,0.00038356,6]
[359252518,1745871050326,-470.0,0.00038356,6]
[359252519,1745871050336,-470.0,0.00038356,6]
[359252520,1745871050346,-1606.54,0.00038356,6]
[359252521,1745871050357,-470.0,0.00038356,6]
[359252522,1745871050366,-470.0,0.00038356,6]
[359252523,1745871050376,-470.0,0.00038356,6]
[359252524,1745871050386,-159.23829172,0.00038356,6]
[359252525,1745871050396,-470.0,0.00038356,6]
[359252526,1745871050406,-470.0,0.00038356,6]
[359252527,1745871050416,-470.0,0.00038356,6]
[359252528,1745871050426,-470.0,0.00038356,6]
[359252529,1745871050436,-470.0,0.00038356,6]
[359252530,1745871050446,-3288.56,0.00038356,6]
[359252531,1745871050457,-470.0,0.00038356,6]
[359252532,1745871050467,-470.0,0.00038356,6]
[359252533,1745871050477,-163.3021946,0.00038356,6]
[359252534,1745871050487,-397.04755012,0.00038356,6]
[359252535,1745871050498,-541.39,0.00038356,6]
[359252536,1745871050508,-507.76,0.00038356,6]
[359252537,1745871050518,-482.39,0.00038356,6]
[359252538,1745871050528,-430.95609377,0.00038356,6]
[359252539,1745871050539,-470.0,0.00038356,6]
[359252540,1745871050548,-652.69,0.00038356,6]
[359252541,1745871050559,-470.0,0.00038356,6]
[359252542,1745871050569,-5676.17,0.00038356,2]
[359252543,1745871050582,-1724.44,0.00038356,6]
[359252544,1745871050592,-591.76,0.00038356,6]
[359252545,1745871050769,-470.0,0.00038356,6]
[359252546,1745871050780,-572.63,0.00038356,6]
[359252547,1745871050790,-470.0,0.00038356,6]
[359252548,1745871050800,-470.0,0.00038356,6]
[359252549,1745871050809,-470.0,0.00038356,6]
[359252550,1745871050819,-470.0,0.00038356,6]
[359252551,1745871050828,-470.0,0.00038356,6]
[359252552,1745871050837,-470.0,0.00038356,6]
[359252553,1745871050847,-525.61,0.00038356,6]
[359252554,1745871050857,-470.0,0.00038356,6]
[359252555,1745871050866,-470.0,0.00038356,6]
[359252556,1745871050875,-2160.47,0.00038356,6]
[359252557,1745871050885,-470.0,0.00038356,6]
[359252558,1745871050894,-518.41,0.00038356,6]
[359252559,1745871050903,-470.0,0.00038356,6]
[359252560,1745871050912,-493.91,0.00038356,6]
[359252561,1745871050922,-292.37772315,0.00038356,2]
[359252562,1745871050933,-150.0,0.00038356,5]
[359252563,1745871050943,-500.0,0.00038373,5]
[359252564,1745871050952,-500.0,0.00038373,5]
[359252565,1745871050961,-500.0,0.00038373,5]
[359252566,1745871050970,-500.0,0.00038373,5]
[359252567,1745871050980,-500.0,0.00038373,5]
[359252568,1745871050989,-264.16822317,0.00038373,5]
[359252569,1745871050998,-4449.92470555,0.0003839,3]
[359252570,1745871051007,-4449.92470555,0.00038398,3]
[359252571,1745871051016,-4344.67408187,0.00038399,2]
[359252572,1745871051025,-8040.08553049,0.00038399,2]
[359252573,1745871051034,-1094.41763381,0.00038399,2]
[359252574,1745871051043,-1000.0,0.000384,2]
[359252575,1745871051051,-2000.0,0.000384,2]
[359252576,1745871051060,-150.0,0.00038408,2]
[359252577,1745871051068,-257.91778498,0.0003842,2]
[359252578,1745871051078,-2000.0,0.00038437,3]
[359252579,1745871051088,-150.0,0.00038459,2]
[359252580,1745871051097,-150.0,0.0003852,2]
[359252581,1745871051107,-767.157,0.0003853,2]
[359252582,1745871051117,-10480.65536896,0.00038551,3]
[359252583,1745871051568,-26569.70378104,0.00038551,3]
[359252584,1745871051581,-4449.92470555,0.00038551,3]
[359252585,1745871051590,-4344.67408187,0.00038553,2]
[359252586,1745871051599,-8040.08553049,0.00038553,2]
[359252587,1745871051608,-150.0,0.00038562,2]
[359252588,1745871051619,-150.0,0.00038572,2]
[359252589,1745871051628,-150.0,0.00038586,2]
[359252590,1745871051638,-13349.7741166,0.0003859,3]
[359252591,1745871051648,-209.94491077,0.00038591,3]
[359252592,1745871051680,-29275.86953545,0.00038591,3]
[359252593,1745871051694,-7564.54470378,0.00038591,3]
[359252594,1745871051703,-22249.6235278,0.00038591,3]
[359252595,1745871051713,-13349.7741166,0.000386,3]
[359252596,1745871051722,-150.0,0.00038609,3]
[359252597,1745871051732,-37050.35915,0.0003861,3]
[359252598,1745871051742,-22249.6235278,0.0003861,3]
[359252599,1745871051751,-130380.10496091,0.0003861,3]
[359252600,1745871051766,-17821.33163909,0.0003861,3]
[359252601,1745871051777,-3031.29083958,0.0003861,3]
[359252602,1745871051791,-6689.99425063,0.0003861,3]
[359252603,1745871051811,-4990.82003339,0.0003861,3]
[359252604,1745871052294,-470.0,0.00038356,6]
[359252605,1745871052303,-470.0,0.00038356,6]
[359252606,1745871052313,-1040.56,0.00038356,6]
[359252607,1745871052322,-3087.5936986,0.0003861,3]
[359252608,1745871052332,-227.54851067,0.00038612,15]
[359252609,1745871052341,-500.0,0.00038619,2]
[359252610,1745871052350,-151.0,0.0003862,14]
[359252611,1745871052360,-15641.5752579,0.0003862,2]
[359252612,1745871052370,-151.0,0.0003862,14]
[359252613,1745871052379,-500.0,0.0003862,2]
[359252614,1745871052389,-22011.5638085,0.0003862,2]
[359252615,1745871052399,-154.22901,0.0003862,14]
[359252616,1745871052408,-151.0,0.0003862,14]
[359252617,1745871052417,-151.0,0.0003862,14]
[359252618,1745871052426,-151.0,0.0003862,14]
[359252619,1745871052436,-228.926148,0.0003862,14]
[359252620,1745871052445,-228.926148,0.0003862,14]
[359252621,1745871052454,-151.0,0.0003862,14]
[359252622,1745871052464,-151.0,0.0003862,14]
[359252623,1745871052474,-151.0,0.0003862,14]
[359252624,1745871052483,-641.618154,0.0003862,14]
[359252625,1745871052493,-641.618154,0.0003862,14]
[359252626,1745871052502,-151.0,0.0003862,14]
[359252627,1745871052512,-151.0,0.0003862,14]
[359252628,1745871052521,-151.0,0.0003862,14]
[359252629,1745871052537,-151.0,0.0003862,14]
[359252630,1745871052551,-151.0,0.0003862,14]
[359252631,1745871052560,-200.292251,0.0003862,14]
[359252632,1745871052573,-168.280264,0.0003862,14]
[359252633,1745871052583,-200.292251,0.0003862,14]
[359252634,1745871052593,-151.0,0.0003862,14]
[359252635,1745871052602,-151.0,0.0003862,14]
[359252636,1745871052612,-951.925764,0.0003862,14]
[359252637,1745871052621,-951.925764,0.0003862,14]
[359252638,1745871052631,-1089.6541812,0.0003862,2]
[359252639,1745871052641,-151.0,0.0003862,14]
[359252640,1745871052651,-151.0,0.0003862,14]
[359252641,1745871052662,-74100.7182999,0.0003862,3]
[359252642,1745871052672,-500.0,0.00038629,2]
[359252643,1745871052683,-500.0,0.00038629,2]
[359252644,1745871052694,-300.0,0.00038629,10]
[359252645,1745871052705,-500.0,0.00038629,10]
[359252646,1745871052714,-470.0,0.0003863,6]
[359252647,1745871052724,-208.05925861,0.0003863,5]
[359252648,1745871052734,-470.0,0.0003863,6]
[359252649,1745871052743,-205.42388184,0.0003863,6]
[359252650,1745871052753,-183.51758548,0.0003863,6]
[359252651,1745871052762,-470.0,0.0003863,6]
[359252652,1745871052772,-597.33147416,0.0003863,6]
[359252653,1745871052781,-196.45762449,0.0003863,6]
[359252654,1745871052791,-470.0,0.0003863,6]
[359252655,1745871052800,-470.0,0.0003863,6]
[359252656,1745871052809,-1527.944005,0.0003863,6]
[359252657,1745871052819,-470.0,0.0003863,6]
[359252658,1745871052828,-470.0,0.0003863,6]
[359252659,1745871052838,-470.0,0.0003863,6]
[359252660,1745871052848,-470.0,0.0003863,6]
[359252661,1745871052857,-1167.816101,0.0003863,6]
[359252662,1745871052866,-470.0,0.0003863,6]
[359252663,1745871052875,-470.0,0.0003863,6]
[359252664,1745871052884,-190.567123,0.0003863,6]
[359252665,1745871052893,-200.0,0.0003863,2]
[359252666,1745871052902,-752.50564,0.0003863,6]
[359252667,1745871052911,-330.0,0.0003863,6]
[359252668,1745871052921,-470.0,0.0003863,6]
[359252669,1745871052930,-470.0,0.0003863,6]
[359252670,1745871052940,-470.0,0.0003863,6]
[359252671,1745871052949,-470.0,0.0003863,6]
[359252672,1745871052958,-470.0,0.0003863,6]
[359252673,1745871052968,-470.0,0.0003863,6]
[359252674,1745871052977,-150.40240299,0.0003863,6]
[359252675,1745871052987,-470.0,0.0003863,6]
[359252676,1745871052996,-470.0,0.0003863,6]
[359252677,1745871053005,-470.0,0.0003863,6]
[359252678,1745871053014,-470.0,0.0003863,6]
[359252679,1745871053024,-470.0,0.0003863,6]
[359252680,1745871053033,-470.0,0.0003863,6]
[359252681,1745871053042,-470.0,0.0003863,6]
[359252682,1745871053051,-470.0,0.0003863,6]
[359252683,1745871053060,-470.0,0.0003863,6]